[Event "Live Chess"]
[Site "Chess.com"]
[Date "2023.05.20"]
[Round "-"]
[White "Man-Del-Brot"]
[Black "Ferrarifan27"]
[Result "0-1"]
[WhiteElo "1122"]
[BlackElo "2063"]
[TimeControl "300"]
[EndTime "15:15:52 PDT"]
[Termination "Ferrarifan27 won by checkmate"]

1. g4 {[%clk 0:04:50.5]} 1... d5 {[%clk 0:04:57.9]} 2. Bg2 {[%clk 0:04:48.6]}
2... Bxg4 {[%clk 0:04:55.8]} 3. c4 {[%clk 0:04:47.6]} 3... Be6 {[%clk
0:04:53.2]} 4. Qb3 {[%clk 0:04:45.5]} 4... Bc8 {[%clk 0:04:41.9]} 5. cxd5 {[%clk
0:04:43.3]} 5... Nf6 {[%clk 0:04:39.8]} 6. Nc3 {[%clk 0:04:40.9]} 6... Na6
{[%clk 0:04:37.5]} 7. d4 {[%clk 0:04:30.9]} 7... g6 {[%clk 0:04:33]} 8. Nf3
{[%clk 0:04:22.8]} 8... Bg7 {[%clk 0:04:24.9]} 9. Bf4 {[%clk 0:04:20.7]} 9...
O-O {[%clk 0:04:16.9]} 10. h4 {[%clk 0:04:17]} 10... Rb8 {[%clk 0:04:10.2]} 11.
Qc2 {[%clk 0:04:07.2]} 11... Nxd5 {[%clk 0:04:07.4]} 12. Nxd5 {[%clk 0:03:59]}
12... Qxd5 {[%clk 0:04:07.3]} 13. Rg1 {[%clk 0:03:43.6]} 13... Bf5 {[%clk
0:04:05.6]} 14. Qc3 {[%clk 0:03:25]} 14... Rbc8 {[%clk 0:03:59]} 15. Rd1 {[%clk
0:03:21.2]} 15... Qxa2 {[%clk 0:03:54]} 16. b3 {[%clk 0:02:54.7]} 16... c5
{[%clk 0:03:46.2]} 17. Ra1 {[%clk 0:02:51]} 17... Qc2 {[%clk 0:03:44.7]} 18. Rc1
{[%clk 0:02:12.4]} 18... Qxc3+ {[%clk 0:03:36.4]} 19. Rxc3 {[%clk 0:02:07]}
19... cxd4 {[%clk 0:03:35.5]} 20. Rxc8 {[%clk 0:02:05]} 20... Rxc8 {[%clk
0:03:35.4]} 21. Kd2 {[%clk 0:01:54.1]} 21... Rc2+ {[%clk 0:03:27.3]} 22. Kd1
{[%clk 0:01:49.3]} 22... Rb2 {[%clk 0:03:26.8]} 23. Nd2 {[%clk 0:00:50.7]} 23...
e5 {[%clk 0:03:17.7]} 24. Bh2 {[%clk 0:00:47.3]} 24... Bh6 {[%clk 0:03:10]} 25.
Nc4 {[%clk 0:00:31.8]} 25... Rb1# {[%clk 0:03:07.7]} 0-1

[Event "Live Chess"]
[Site "Chess.com"]
[Date "2023.05.20"]
[Round "-"]
[White "Ed_Knox"]
[Black "Mikhail_Golubev"]
[Result "0-1"]
[WhiteElo "1441"]
[BlackElo "2505"]
[TimeControl "300"]
[EndTime "15:15:57 PDT"]
[Termination "Mikhail_Golubev won by checkmate"]

1. d4 {[%clk 0:04:56.3]} 1... g6 {[%clk 0:04:56.4]} 2. e4 {[%clk 0:04:49.9]}
2... Bg7 {[%clk 0:04:55.5]} 3. Nc3 {[%clk 0:04:46.6]} 3... b6 {[%clk 0:04:54.6]}
4. Be3 {[%clk 0:04:45.9]} 4... Bb7 {[%clk 0:04:53.6]} 5. Qd2 {[%clk 0:04:43.8]}
5... d6 {[%clk 0:04:50.6]} 6. O-O-O {[%clk 0:04:42.4]} 6... Nd7 {[%clk
0:04:49.5]} 7. h4 {[%clk 0:04:39.4]} 7... h5 {[%clk 0:04:42.7]} 8. f3 {[%clk
0:04:37.3]} 8... c5 {[%clk 0:04:39.5]} 9. d5 {[%clk 0:04:31.5]} 9... a6 {[%clk
0:04:38.5]} 10. g4 {[%clk 0:04:24.7]} 10... b5 {[%clk 0:04:32.6]} 11. gxh5
{[%clk 0:04:14.1]} 11... Rxh5 {[%clk 0:04:29.8]} 12. Be2 {[%clk 0:04:00]} 12...
Qa5 {[%clk 0:04:22.7]} 13. Kb1 {[%clk 0:03:51.9]} 13... b4 {[%clk 0:04:20.8]}
14. f4 {[%clk 0:02:36.7]} 14... bxc3 {[%clk 0:04:18.5]} 15. Qd3 {[%clk
0:02:30.4]} 15... Qb4 {[%clk 0:03:44.4]} 16. Bc1 {[%clk 0:02:10.2]} 16... c4
{[%clk 0:03:23.1]} 17. Qg3 {[%clk 0:01:47.2]} 17... cxb2 {[%clk 0:03:21.1]} 18.
Bd2 {[%clk 0:01:45.2]} 18... c3 {[%clk 0:03:19.5]} 19. Be3 {[%clk 0:01:37.4]}
19... Ngf6 {[%clk 0:03:03.1]} 20. Bxh5 {[%clk 0:01:33.7]} 20... Nxh5 {[%clk
0:03:03]} 21. Qg5 {[%clk 0:01:25.3]} 21... Qxe4 {[%clk 0:02:54.8]} 22. Rh3
{[%clk 0:01:02]} 22... Ndf6 {[%clk 0:02:25.3]} 23. Ne2 {[%clk 0:00:56.4]} 23...
Nxd5 {[%clk 0:02:16.6]} 24. Bb6 {[%clk 0:00:26.6]} 24... Qxe2 {[%clk 0:02:00.2]}
25. Rhd3 {[%clk 0:00:18]} 25... Nb4 {[%clk 0:01:55]} 26. Ba5 {[%clk 0:00:00.9]}
26... Qxc2# {[%clk 0:01:49.6]} 0-1

[Event "Live Chess"]
[Site "Chess.com"]
[Date "2023.05.20"]
[Round "-"]
[White "lightningorderyt"]
[Black "LodeshChess"]
[Result "0-1"]
[WhiteElo "518"]
[BlackElo "1094"]
[TimeControl "300"]
[EndTime "15:15:59 PDT"]
[Termination "LodeshChess won by resignation"]

1. d4 {[%clk 0:04:59.7]} 1... Nf6 {[%clk 0:04:58.3]} 2. Nc3 {[%clk 0:04:57.7]}
2... d5 {[%clk 0:04:56.1]} 3. Bg5 {[%clk 0:04:54.9]} 3... e6 {[%clk 0:04:55]} 4.
Nf3 {[%clk 0:04:46.6]} 4... h6 {[%clk 0:04:53.8]} 5. Bxf6 {[%clk 0:04:45.5]}
5... Qxf6 {[%clk 0:04:53.1]} 6. e4 {[%clk 0:04:45]} 6... Bb4 {[%clk 0:04:43.7]}
7. e5 {[%clk 0:04:38.4]} 7... Qe7 {[%clk 0:04:20.6]} 8. Qd3 {[%clk 0:04:28.4]}
8... c5 {[%clk 0:04:16]} 9. a3 {[%clk 0:04:21.3]} 9... Ba5 {[%clk 0:04:07.6]}
10. Qb5+ {[%clk 0:04:13.8]} 10... Nc6 {[%clk 0:04:01.1]} 11. dxc5 {[%clk
0:03:59.8]} 11... Bxc3+ {[%clk 0:03:58]} 12. bxc3 {[%clk 0:03:57.6]} 12... O-O
{[%clk 0:03:46]} 13. Qd3 {[%clk 0:03:36.5]} 13... Qxc5 {[%clk 0:03:31.4]} 14.
Qe3 {[%clk 0:03:30.4]} 14... Qxe3+ {[%clk 0:03:13.1]} 15. fxe3 {[%clk
0:03:24.2]} 15... a6 {[%clk 0:03:12.6]} 16. c4 {[%clk 0:03:20.7]} 16... dxc4
{[%clk 0:03:04.6]} 17. Bxc4 {[%clk 0:03:20.6]} 17... b5 {[%clk 0:03:02.4]} 18.
O-O {[%clk 0:03:20.5]} 18... bxc4 {[%clk 0:03:01.1]} 19. Nd4 {[%clk 0:03:10.6]}
19... Nxd4 {[%clk 0:02:59]} 20. exd4 {[%clk 0:03:10.5]} 20... Bb7 {[%clk
0:02:54.6]} 21. a4 {[%clk 0:03:06]} 21... Bd5 {[%clk 0:02:52.9]} 22. c3 {[%clk
0:03:03.9]} 22... Rab8 {[%clk 0:02:51.1]} 0-1

[Event "Live Chess"]
[Site "Chess.com"]
[Date "2023.05.20"]
[Round "-"]
[White "Olisingapore"]
[Black "ShanthamGrarks"]
[Result "0-1"]
[WhiteElo "1863"]
[BlackElo "1920"]
[TimeControl "300"]
[EndTime "15:16:05 PDT"]
[Termination "ShanthamGrarks won on time"]

1. d4 {[%clk 0:04:58.6]} 1... e6 {[%clk 0:04:55.1]} 2. c4 {[%clk 0:04:58.2]}
2... f5 {[%clk 0:04:53.5]} 3. g3 {[%clk 0:04:56.7]} 3... Nf6 {[%clk 0:04:53.1]}
4. Bg2 {[%clk 0:04:56.3]} 4... c6 {[%clk 0:04:52.6]} 5. Nf3 {[%clk 0:04:56.2]}
5... d5 {[%clk 0:04:51.8]} 6. O-O {[%clk 0:04:56.1]} 6... Be7 {[%clk 0:04:50.1]}
7. Qc2 {[%clk 0:04:55.5]} 7... O-O {[%clk 0:04:49.4]} 8. Nbd2 {[%clk 0:04:55]}
8... Nbd7 {[%clk 0:04:47.7]} 9. cxd5 {[%clk 0:04:50.1]} 9... cxd5 {[%clk
0:04:45.7]} 10. b3 {[%clk 0:04:45.3]} 10... Ne4 {[%clk 0:04:45.1]} 11. Bb2
{[%clk 0:04:28.7]} 11... Ndf6 {[%clk 0:04:42.6]} 12. Ne5 {[%clk 0:04:24.8]}
12... Nxd2 {[%clk 0:04:36.4]} 13. Qxd2 {[%clk 0:04:23.3]} 13... Ne4 {[%clk
0:04:36]} 14. Qc2 {[%clk 0:04:03.9]} 14... Bd7 {[%clk 0:04:32.5]} 15. Rfc1
{[%clk 0:03:58.1]} 15... Rc8 {[%clk 0:04:30.6]} 16. Qd3 {[%clk 0:03:52.7]} 16...
a6 {[%clk 0:04:19.2]} 17. a4 {[%clk 0:03:29.3]} 17... Bc6 {[%clk 0:04:02.3]} 18.
f3 {[%clk 0:03:24.2]} 18... Nd6 {[%clk 0:03:54.6]} 19. Nxc6 {[%clk 0:02:04.6]}
19... bxc6 {[%clk 0:03:48.2]} 20. Rc3 {[%clk 0:02:03.2]} 20... a5 {[%clk
0:03:44]} 21. Rac1 {[%clk 0:02:02.4]} 21... Qd7 {[%clk 0:03:42.1]} 22. Ba3
{[%clk 0:01:57.4]} 22... Rfe8 {[%clk 0:03:28.3]} 23. Qa6 {[%clk 0:01:50.3]}
23... f4 {[%clk 0:02:55.9]} 24. Rxc6 {[%clk 0:01:46.6]} 24... Rxc6 {[%clk
0:02:53.6]} 25. Qxc6 {[%clk 0:01:44]} 25... Qxc6 {[%clk 0:02:50.1]} 26. Rxc6
{[%clk 0:01:43.7]} 26... Nf5 {[%clk 0:02:48.9]} 27. Bxe7 {[%clk 0:01:39.3]}
27... Rxe7 {[%clk 0:02:47.2]} 28. Ra6 {[%clk 0:01:20.5]} 28... Nxd4 {[%clk
0:02:45.1]} 29. Rxa5 {[%clk 0:01:19.7]} 29... Nxe2+ {[%clk 0:02:41.6]} 30. Kf2
{[%clk 0:01:17.7]} 30... Nd4 {[%clk 0:02:39.6]} 31. b4 {[%clk 0:01:10.2]} 31...
fxg3+ {[%clk 0:02:37.5]} 32. hxg3 {[%clk 0:01:09.2]} 32... Nb3 {[%clk
0:02:32.3]} 33. Ra8+ {[%clk 0:01:07.4]} 33... Kf7 {[%clk 0:02:30.3]} 34. a5
{[%clk 0:01:06.9]} 34... Rb7 {[%clk 0:02:24]} 35. a6 {[%clk 0:01:04.1]} 35...
Rxb4 {[%clk 0:02:22]} 36. f4 {[%clk 0:00:57.9]} 36... Ra4 {[%clk 0:02:18.7]} 37.
Bf3 {[%clk 0:00:51.8]} 37... Nc5 {[%clk 0:02:15]} 38. Be2 {[%clk 0:00:48.8]}
38... d4 {[%clk 0:02:11.6]} 39. Bb5 {[%clk 0:00:41.9]} 39... Ra5 {[%clk
0:02:05.8]} 40. a7 {[%clk 0:00:33.2]} 40... Ne4+ {[%clk 0:01:54.7]} 41. Kg2
{[%clk 0:00:28.3]} 41... Nd6 {[%clk 0:01:51]} 42. Rd8 {[%clk 0:00:22.8]} 42...
Nxb5 {[%clk 0:01:47.8]} 43. a8=Q {[%clk 0:00:20.5]} 43... Rxa8 {[%clk
0:01:47.3]} 44. Rxa8 {[%clk 0:00:20.1]} 44... Kf6 {[%clk 0:01:43.8]} 45. Rd8
{[%clk 0:00:19.4]} 45... Kf5 {[%clk 0:01:42.2]} 46. Kf3 {[%clk 0:00:19.1]} 46...
h5 {[%clk 0:01:38.1]} 47. Rd7 {[%clk 0:00:15.5]} 47... g5 {[%clk 0:01:34.2]} 48.
fxg5 {[%clk 0:00:14.1]} 48... Kxg5 {[%clk 0:01:33.1]} 49. Rg7+ {[%clk
0:00:12.7]} 49... Kf6 {[%clk 0:01:31.1]} 50. Rb7 {[%clk 0:00:12.2]} 50... Nd6
{[%clk 0:01:26.8]} 51. Rb4 {[%clk 0:00:11.5]} 51... e5 {[%clk 0:01:24.1]} 52. g4
{[%clk 0:00:09.7]} 52... h4 {[%clk 0:01:22.4]} 53. Ke2 {[%clk 0:00:07.3]} 53...
Kg5 {[%clk 0:01:21]} 54. Rb8 {[%clk 0:00:05.4]} 54... Kxg4 {[%clk 0:01:18.8]}
55. Rg8+ {[%clk 0:00:05.1]} 55... Kf4 {[%clk 0:01:17.7]} 56. Rf8+ {[%clk
0:00:04.6]} 56... Nf5 {[%clk 0:01:16.7]} 57. Rh8 {[%clk 0:00:03.6]} 57... Ke4
{[%clk 0:01:14.1]} 58. Rh5 {[%clk 0:00:02.9]} 58... d3+ {[%clk 0:01:12.1]} 59.
Kd2 {[%clk 0:00:01.8]} 59... Kf4 {[%clk 0:00:56.9]} 60. Rh8 {[%clk 0:00:00.6]}
60... e4 {[%clk 0:00:54.8]} 0-1

[Event "Live Chess"]
[Site "Chess.com"]
[Date "2023.05.20"]
[Round "-"]
[White "Biranidun"]
[Black "blowerd"]
[Result "1-0"]
[WhiteElo "2766"]
[BlackElo "1415"]
[TimeControl "300"]
[EndTime "15:16:13 PDT"]
[Termination "Biranidun won by checkmate"]

1. e4 {[%clk 0:04:58.6]} 1... e5 {[%clk 0:04:59.1]} 2. Nf3 {[%clk 0:04:57.8]}
2... Nc6 {[%clk 0:04:58.3]} 3. Bb5 {[%clk 0:04:56.8]} 3... a6 {[%clk 0:04:56.6]}
4. Ba4 {[%clk 0:04:56.2]} 4... b5 {[%clk 0:04:54]} 5. Bb3 {[%clk 0:04:55.3]}
5... Nf6 {[%clk 0:04:52.3]} 6. O-O {[%clk 0:04:54.6]} 6... d6 {[%clk 0:04:50.1]}
7. Re1 {[%clk 0:04:53.8]} 7... Na5 {[%clk 0:04:49.2]} 8. d4 {[%clk 0:04:51.6]}
8... Nxb3 {[%clk 0:04:48.1]} 9. axb3 {[%clk 0:04:51.2]} 9... exd4 {[%clk
0:04:45.3]} 10. e5 {[%clk 0:04:51.1]} 10... dxe5 {[%clk 0:04:43.1]} 11. Nxe5
{[%clk 0:04:51]} 11... Be7 {[%clk 0:04:40.4]} 12. Nc6 {[%clk 0:04:50.3]} 12...
Qd7 {[%clk 0:04:02.4]} 13. Nxe7 {[%clk 0:04:49.3]} 13... Bb7 {[%clk 0:03:50.3]}
14. Ng6+ {[%clk 0:04:42.2]} 14... Kd8 {[%clk 0:03:47.1]} 15. Nxh8 {[%clk
0:04:41.5]} 15... Qg4 {[%clk 0:03:44.6]} 16. Qxg4 {[%clk 0:04:40.2]} 16... Nxg4
{[%clk 0:03:43.4]} 17. Nxf7+ {[%clk 0:04:40.1]} 17... Kd7 {[%clk 0:03:41.1]} 18.
Ne5+ {[%clk 0:04:39.7]} 18... Nxe5 {[%clk 0:03:38.8]} 19. Rxe5 {[%clk
0:04:39.6]} 19... Rf8 {[%clk 0:03:35.5]} 20. Nd2 {[%clk 0:04:38.3]} 20... Rf6
{[%clk 0:03:34.5]} 21. Nf3 {[%clk 0:04:36.9]} 21... Rg6 {[%clk 0:03:33.4]} 22.
Rg5 {[%clk 0:04:34.9]} 22... Bxf3 {[%clk 0:03:27.3]} 23. Rxg6 {[%clk 0:04:33.8]}
23... hxg6 {[%clk 0:03:25.8]} 24. gxf3 {[%clk 0:04:33.7]} 24... Ke6 {[%clk
0:03:23.2]} 25. Rxa6+ {[%clk 0:04:32.9]} 25... Kf5 {[%clk 0:03:21.4]} 26. Rc6
{[%clk 0:04:30]} 26... g5 {[%clk 0:03:14.3]} 27. Rxc7 {[%clk 0:04:28.6]} 27...
g6 {[%clk 0:03:13.5]} 28. Rc5+ {[%clk 0:04:27.7]} 28... Ke6 {[%clk 0:03:09.2]}
29. Bxg5 {[%clk 0:04:27.6]} 29... Kd6 {[%clk 0:03:07.2]} 30. Rxb5 {[%clk
0:04:26.9]} 30... Kc6 {[%clk 0:03:05.9]} 31. Re5 {[%clk 0:04:25.1]} 31... Kd6
{[%clk 0:03:02.7]} 32. Bf4 {[%clk 0:04:23.7]} 32... Kc6 {[%clk 0:03:00.6]} 33.
Re6+ {[%clk 0:04:22.6]} 33... Kd5 {[%clk 0:02:59.1]} 34. Rxg6 {[%clk 0:04:22.5]}
34... d3 {[%clk 0:02:57.2]} 35. cxd3 {[%clk 0:04:22.4]} 35... Kd4 {[%clk
0:02:55.6]} 36. h4 {[%clk 0:04:22.3]} 36... Kxd3 {[%clk 0:02:54.5]} 37. h5
{[%clk 0:04:22.2]} 37... Kc2 {[%clk 0:02:53]} 38. h6 {[%clk 0:04:22.1]} 38...
Kxb2 {[%clk 0:02:52.1]} 39. h7 {[%clk 0:04:22]} 39... Kxb3 {[%clk 0:02:51.2]}
40. h8=Q {[%clk 0:04:21.4]} 40... Kc4 {[%clk 0:02:48.6]} 41. Rc6+ {[%clk
0:04:19.9]} 41... Kd5 {[%clk 0:02:47.1]} 42. Rd6+ {[%clk 0:04:18.4]} 42... Kc4
{[%clk 0:02:43.1]} 43. Qd4+ {[%clk 0:04:17.2]} 43... Kb5 {[%clk 0:02:41.1]} 44.
Rb6+ {[%clk 0:04:16.2]} 44... Ka5 {[%clk 0:02:36.7]} 45. Qb4# {[%clk 0:04:16.1]}
1-0

[Event "Live Chess"]
[Site "Chess.com"]
[Date "2023.05.20"]
[Round "-"]
[White "Horseymobile"]
[Black "AbilifyXL"]
[Result "0-1"]
[WhiteElo "1251"]
[BlackElo "1973"]
[TimeControl "300"]
[EndTime "15:16:24 PDT"]
[Termination "AbilifyXL won by resignation"]

1. d4 {[%clk 0:04:58.4]} 1... d5 {[%clk 0:04:59.6]} 2. c4 {[%clk 0:04:56.7]}
2... c6 {[%clk 0:04:59.5]} 3. Nf3 {[%clk 0:04:55]} 3... Nf6 {[%clk 0:04:58.7]}
4. Nc3 {[%clk 0:04:54.4]} 4... a6 {[%clk 0:04:58.1]} 5. Bg5 {[%clk 0:04:51.2]}
5... e6 {[%clk 0:04:56.1]} 6. e3 {[%clk 0:04:49.8]} 6... b5 {[%clk 0:04:54.3]}
7. cxd5 {[%clk 0:04:44.5]} 7... cxd5 {[%clk 0:04:53.6]} 8. a3 {[%clk 0:04:43.7]}
8... Bb7 {[%clk 0:04:52]} 9. Bd3 {[%clk 0:04:41.6]} 9... Be7 {[%clk 0:04:50.3]}
10. O-O {[%clk 0:04:40.3]} 10... O-O {[%clk 0:04:49.5]} 11. Qc2 {[%clk
0:04:36.2]} 11... h6 {[%clk 0:04:46.4]} 12. Bf4 {[%clk 0:04:34.2]} 12... Nc6
{[%clk 0:04:44.5]} 13. Ne5 {[%clk 0:04:28.2]} 13... Rc8 {[%clk 0:04:43.2]} 14.
Rac1 {[%clk 0:04:25.7]} 14... Na5 {[%clk 0:04:42.1]} 15. b3 {[%clk 0:04:20.8]}
15... Bxa3 {[%clk 0:04:39.9]} 16. Ra1 {[%clk 0:04:19.8]} 16... b4 {[%clk
0:04:38.7]} 0-1

[Event "Live Chess"]
[Site "Chess.com"]
[Date "2023.05.20"]
[Round "-"]
[White "HonestJoe1"]
[Black "JackCheetham1"]
[Result "1-0"]
[WhiteElo "2117"]
[BlackElo "1698"]
[TimeControl "300"]
[EndTime "15:16:29 PDT"]
[Termination "HonestJoe1 won on time"]

1. d4 {[%clk 0:04:55.1]} 1... Nf6 {[%clk 0:04:57.8]} 2. c4 {[%clk 0:04:53.8]}
2... e6 {[%clk 0:04:56.7]} 3. g3 {[%clk 0:04:52.3]} 3... d5 {[%clk 0:04:55.8]}
4. Bg2 {[%clk 0:04:51.1]} 4... c6 {[%clk 0:04:54.4]} 5. Nf3 {[%clk 0:04:49.9]}
5... Be7 {[%clk 0:04:53.6]} 6. O-O {[%clk 0:04:48.6]} 6... O-O {[%clk
0:04:52.7]} 7. Qc2 {[%clk 0:04:47.7]} 7... Nbd7 {[%clk 0:04:51.2]} 8. Nbd2
{[%clk 0:04:46.8]} 8... Re8 {[%clk 0:04:50.3]} 9. e4 {[%clk 0:04:45.8]} 9...
dxe4 {[%clk 0:04:49.2]} 10. Nxe4 {[%clk 0:04:44.8]} 10... Nxe4 {[%clk
0:04:48.8]} 11. Qxe4 {[%clk 0:04:43.9]} 11... Nf6 {[%clk 0:04:48.4]} 12. Qe2
{[%clk 0:04:43]} 12... h6 {[%clk 0:04:34.8]} 13. b3 {[%clk 0:04:33.7]} 13... Qc7
{[%clk 0:04:31.7]} 14. Bb2 {[%clk 0:04:30.2]} 14... b6 {[%clk 0:04:28.4]} 15.
Ne5 {[%clk 0:04:26.8]} 15... Bb7 {[%clk 0:04:26.6]} 16. Qf3 {[%clk 0:04:17.4]}
16... Rab8 {[%clk 0:04:19.2]} 17. Qe2 {[%clk 0:04:15]} 17... Nd7 {[%clk
0:04:02.2]} 18. Rad1 {[%clk 0:04:01.5]} 18... Rbd8 {[%clk 0:03:48.6]} 19. Qh5
{[%clk 0:03:50]} 19... Nxe5 {[%clk 0:03:38.5]} 20. dxe5 {[%clk 0:03:48.9]} 20...
c5 {[%clk 0:03:28.8]} 21. Rxd8 {[%clk 0:03:28.9]} 21... Rxd8 {[%clk 0:03:24.9]}
22. Rd1 {[%clk 0:03:23.9]} 22... Bxg2 {[%clk 0:03:05.4]} 23. Kxg2 {[%clk
0:03:18.3]} 23... a6 {[%clk 0:02:57.5]} 24. Qf3 {[%clk 0:03:12.4]} 24... b5
{[%clk 0:02:49.1]} 25. cxb5 {[%clk 0:03:09.9]} 25... axb5 {[%clk 0:02:47.6]} 26.
Rxd8+ {[%clk 0:03:06.9]} 26... Qxd8 {[%clk 0:02:46.1]} 27. Qc6 {[%clk 0:03:03]}
27... Qd5+ {[%clk 0:02:40]} 28. Qxd5 {[%clk 0:02:56]} 28... exd5 {[%clk
0:02:39.9]} 29. Kf3 {[%clk 0:02:49.3]} 29... g6 {[%clk 0:02:23.2]} 30. Ke3
{[%clk 0:02:41.2]} 30... Kf8 {[%clk 0:02:13.9]} 31. b4 {[%clk 0:02:37.3]} 31...
Ke8 {[%clk 0:02:08]} 32. bxc5 {[%clk 0:02:34.9]} 32... Bxc5+ {[%clk 0:02:07.9]}
33. Bd4 {[%clk 0:02:32.4]} 33... Be7 {[%clk 0:02:01.1]} 34. Bb6 {[%clk
0:02:15.6]} 34... Kd7 {[%clk 0:01:52.5]} 35. Kd4 {[%clk 0:02:14.5]} 35... Ke6
{[%clk 0:01:48.1]} 36. f4 {[%clk 0:02:12.2]} 36... Bb4 {[%clk 0:01:33.6]} 37.
Kd3 {[%clk 0:01:55.6]} 37... h5 {[%clk 0:01:18.9]} 38. h3 {[%clk 0:01:50.9]}
38... Be1 {[%clk 0:01:13.5]} 39. g4 {[%clk 0:01:47.9]} 39... hxg4 {[%clk
0:01:10.5]} 40. hxg4 {[%clk 0:01:47]} 40... Bg3 {[%clk 0:01:06.8]} 41. Be3
{[%clk 0:01:44.5]} 41... Be1 {[%clk 0:00:55.9]} 42. Kd4 {[%clk 0:01:34.3]} 42...
Bb4 {[%clk 0:00:48.3]} 43. Bc1 {[%clk 0:01:22]} 43... Be7 {[%clk 0:00:41]} 44.
Bd2 {[%clk 0:01:16.9]} 44... Ba3 {[%clk 0:00:37.5]} 45. Kd3 {[%clk 0:01:08.7]}
45... Be7 {[%clk 0:00:27.7]} 46. Be3 {[%clk 0:01:06.2]} 46... Ba3 {[%clk
0:00:22.7]} 47. Kc3 {[%clk 0:01:02.1]} 47... b4+ {[%clk 0:00:19.5]} 48. Kb3
{[%clk 0:00:54.7]} 48... Kd7 {[%clk 0:00:16.9]} 49. Bd2 {[%clk 0:00:52.7]} 49...
Kc6 {[%clk 0:00:12.6]} 50. Bxb4 {[%clk 0:00:51.6]} 50... Bxb4 {[%clk 0:00:08.9]}
51. Kxb4 {[%clk 0:00:50.5]} 51... Kb6 {[%clk 0:00:06.6]} 52. a4 {[%clk
0:00:47.9]} 52... Kc6 {[%clk 0:00:02.2]} 53. a5 {[%clk 0:00:46]} 53... d4 {[%clk
0:00:01.4]} 54. Kc4 {[%clk 0:00:44.8]} 1-0

[Event "Live Chess"]
[Site "Chess.com"]
[Date "2023.05.20"]
[Round "-"]
[White "diana21strabt"]
[Black "LiamClery2020"]
[Result "1-0"]
[WhiteElo "1708"]
[BlackElo "2074"]
[TimeControl "300"]
[EndTime "15:16:29 PDT"]
[Termination "diana21strabt won by resignation"]

1. e4 {[%clk 0:04:56.8]} 1... Nf6 {[%clk 0:04:59.9]} 2. e5 {[%clk 0:04:54.4]}
2... Nd5 {[%clk 0:04:59.4]} 3. c4 {[%clk 0:04:53.2]} 3... Nb6 {[%clk 0:04:58.4]}
4. d4 {[%clk 0:04:52.1]} 4... d6 {[%clk 0:04:57.7]} 5. f4 {[%clk 0:04:51]} 5...
dxe5 {[%clk 0:04:56.8]} 6. fxe5 {[%clk 0:04:49.7]} 6... Nc6 {[%clk 0:04:56.7]}
7. Be3 {[%clk 0:04:47.4]} 7... Bf5 {[%clk 0:04:56.1]} 8. Nf3 {[%clk 0:04:46.2]}
8... e6 {[%clk 0:04:54.3]} 9. Nc3 {[%clk 0:04:45]} 9... Be7 {[%clk 0:04:53.6]}
10. Be2 {[%clk 0:04:44.1]} 10... O-O {[%clk 0:04:52.7]} 11. O-O {[%clk
0:04:43.6]} 11... f6 {[%clk 0:04:52.2]} 12. exf6 {[%clk 0:04:42.8]} 12... Bxf6
{[%clk 0:04:52.1]} 13. d5 {[%clk 0:04:32.8]} 13... exd5 {[%clk 0:04:44.1]} 14.
Nxd5 {[%clk 0:04:31.5]} 14... Nxd5 {[%clk 0:04:41.1]} 15. Qxd5+ {[%clk
0:04:29.4]} 15... Qxd5 {[%clk 0:04:39.5]} 16. cxd5 {[%clk 0:04:28.4]} 16... Nb4
{[%clk 0:04:38.2]} 17. Bc5 {[%clk 0:04:24.9]} 17... Nc2 {[%clk 0:04:34]} 18.
Bxf8 {[%clk 0:04:17]} 18... Nxa1 {[%clk 0:04:32.8]} 19. Bxg7 {[%clk 0:04:15.4]}
19... Bxg7 {[%clk 0:04:28.3]} 20. Rxa1 {[%clk 0:04:13.2]} 20... Re8 {[%clk
0:04:27.8]} 21. Bc4 {[%clk 0:04:10.9]} 21... Re4 {[%clk 0:04:24]} 22. Bb3 {[%clk
0:04:01.3]} 22... Kf8 {[%clk 0:04:17.1]} 23. Rc1 {[%clk 0:03:56.6]} 23... Re7
{[%clk 0:04:10.6]} 24. Nh4 {[%clk 0:03:54.3]} 24... Be4 {[%clk 0:04:03.4]} 25.
Rf1+ {[%clk 0:03:44.9]} 25... Ke8 {[%clk 0:04:01.4]} 26. Ba4+ {[%clk 0:03:32.8]}
26... c6 {[%clk 0:04:00.3]} 27. dxc6 {[%clk 0:03:31.3]} 27... bxc6 {[%clk
0:03:59.3]} 28. Rc1 {[%clk 0:03:27.7]} 28... Bxb2 {[%clk 0:03:54.7]} 29. Bxc6+
{[%clk 0:03:25.9]} 29... Kd8 {[%clk 0:03:52.7]} 30. Rd1+ {[%clk 0:03:16]} 30...
Kc7 {[%clk 0:03:48.7]} 31. Bxe4 {[%clk 0:03:14]} 31... Rxe4 {[%clk 0:03:48.6]}
32. Nf3 {[%clk 0:03:10]} 32... Ba3 {[%clk 0:03:44.1]} 33. Rd3 {[%clk 0:03:07.1]}
33... Bc5+ {[%clk 0:03:41.3]} 34. Kf1 {[%clk 0:03:04.7]} 34... Ra4 {[%clk
0:03:37.8]} 35. Rd2 {[%clk 0:03:01]} 35... Kb6 {[%clk 0:03:31.2]} 36. Ne5 {[%clk
0:02:54.2]} 36... Rf4+ {[%clk 0:03:28.3]} 37. Nf3 {[%clk 0:02:49.5]} 37... h5
{[%clk 0:03:21.9]} 38. Rd3 {[%clk 0:02:39.4]} 38... Ra4 {[%clk 0:03:15.9]} 39.
Rd2 {[%clk 0:02:38.2]} 39... h4 {[%clk 0:03:13.2]} 40. h3 {[%clk 0:02:34.2]}
40... Rb4 {[%clk 0:03:10.1]} 41. Ke2 {[%clk 0:02:31.5]} 41... Re4+ {[%clk
0:03:07.7]} 42. Kd1 {[%clk 0:02:27.4]} 42... Re3 {[%clk 0:03:01.3]} 43. Nxh4
{[%clk 0:02:23.1]} 43... Bb4 {[%clk 0:02:52.8]} 44. Rb2 {[%clk 0:02:18.7]} 44...
Kc5 {[%clk 0:02:51.3]} 45. Nf5 {[%clk 0:02:12.3]} 45... Re1+ {[%clk 0:02:49.8]}
46. Kc2 {[%clk 0:02:11]} 46... Re2+ {[%clk 0:02:49.1]} 47. Kb3 {[%clk
0:02:04.8]} 47... Re5 {[%clk 0:02:39.4]} 48. Rc2+ {[%clk 0:02:03.1]} 48... Kb5
{[%clk 0:02:38.2]} 49. Nd4+ {[%clk 0:02:01.8]} 49... Ka5 {[%clk 0:02:34.2]} 50.
Nc6+ {[%clk 0:02:00.3]} 50... Kb6 {[%clk 0:02:33.5]} 1-0